[Event "Cracovia Festival-A 2023"]
[Site "Krakow"]
[Date "2024.01.02"]
[Round "6.4"]
[White "Bogdanov, Egor"]
[Black "Polak, Tomas"]
[Result "1-0"]
[ECO "C24"]
[WhiteElo "2394"]
[BlackElo "2517"]
[Annotator "TA"]
[PlyCount "157"]
[EventDate "2023.12.24"]
[EventType "swiss"]
[EventCountry "POL"]
[SourceTitle "playchess.com"]
[Source "ChessBase"]
[SourceQuality "1"]
[TimeControl "40/5400+30:1800+30"]

{[%evp 17,157,6,14,14,5,14,8,0,11,11,10,8,17,4,19,14,32,22,75,72,93,91,89,89,92,95,92,96,86,85,89,90,87,97,123,123,133,133,133,126,126,97,97,97,97,97,96,97,97,91,91,91,91,91,90,59,87,60,78,22,80,71,71,71,354,239,239,241,241,233,215,208,981,638,739,663,905,976,1044,1142,1267,585,588,978,960,538,928,395,1380,1407,1377,1388,1704,1665,1271,782,1223,1203,1802,1788,1710,1687,943,795,787,776,1479,261,1406,1378,1313,1152,1239,930,1147,1064,930,867,864,864,722,722,5722,5277,5077,5077,1556,3430,1852,2710,1953,1826,1799,1843,1797,1702,2158,2791,1611,1566,1416,1380]} 1. e4 {[%emt 0:00:01]} e5 {[%emt 0:06:00]} 2. Bc4 {[%emt 0:00:22]} Nf6 {[%emt 0:00:21]} 3. d3 {[%emt 0:00:05]} c6 {[%emt 0:00:08]} 4. Nf3 {[%emt 0:00:10]} d5 {[%emt 0:00:05]} 5. Bb3 {[%emt 0:00:09]} Bd6 {[%emt 0:00:13]} 6. Nc3 {[%emt 0:00:10]} dxe4 {[%emt 0:00:33]} 7. Ng5 {[%emt 0:00:10]} O-O {[%emt 0:00:06]} 8. Ngxe4 {[%emt 0:00:06]} Nxe4 {[%emt 0:00:19]} 9. Nxe4 {[%emt 0:00:03]} Bf5 $1 {[%emt 0:03:47]} 10. Qf3 {[%emt 0:00:05]} Bxe4 {[%emt 0:02:49]} 11. dxe4 {[%emt 0:00:06]} Nd7 {[%emt 0:03:04]} 12. c3 {[%emt 0:00:13] The position is equal.} Nc5 {[%emt 0:01:01]} 13. Bc2 {[%emt 0:00:18]} a5 {[%emt 0:00:43]} 14. O-O {[%emt 0:01:16]} Qe7 {[%emt 0:02:54]} 15. Be3 {[%emt 0:02:06]} Rfd8 {[%emt 0:06:39]} 16. Rad1 {[%emt 0:00:33]} Bc7 {[%emt 0:01:39]} 17. Qg4 {[%emt 0:03:36]} Ne6 {[%emt 0:15:37]} (17... b5 $11) 18. Bb3 $16 {[%emt 0:04:57] White is more active.} a4 {[%emt 0:21:48]} 19. Bxe6 {[%emt 0:02:56]} Qxe6 {[%emt 0:01:36]} 20. Qxe6 {[%emt 0:00:55]} fxe6 {[%emt 0:00:02]} 21. Bg5 {[%emt 0:00:49]} Rxd1 {[%emt 0:00:26]} 22. Rxd1 {[%emt 0:00:01][%mdl 4096] Endgame KRB-KRB} Rf8 {[%emt 0:00:07]} 23. Kf1 {[%emt 0:03:05]} h6 {[%emt 0:05:53]} 24. Be7 {[%emt 0:14:33]} Rf7 {[%emt 0:02:18]} 25. Bc5 {[%emt 0:06:42]} b6 {[%emt 0:02:15]} 26. Be3 {[%emt 0:00:21]} Kf8 {[%emt 0:00:42]} 27. b3 $1 {[%emt 0:02:28]} axb3 {[%emt 0:00:21]} 28. axb3 {[%emt 0:00:02]} Ke8 {[%emt 0:00:06]} 29. Ra1 {[%emt 0:00:18]} Kd7 {[%emt 0:07:22]} 30. Ra8 {[%emt 0:07:18]} c5 {[%emt 0:00:50]} 31. c4 {[%emt 0:02:03]} Kc6 {[%emt 0:00:10]} 32. Ke2 {[%emt 0:02:25]} Bd6 {[%emt 0:00:37]} 33. Bd2 {[%emt 0:03:14]} Rf8 {[%emt 0:04:40]} 34. Rxf8 {[%emt 0:02:15]} Bxf8 {[%emt 0:00:04] KB-KB} 35. Bc3 {[%emt 0:02:30]} Kd6 {[%emt 0:00:26]} 36. g3 {[%emt 0:04:02]} g6 {[%emt 0:01:45]} 37. Kd3 {[%emt 0:03:05]} Be7 {[%emt 0:02:02]} 38. b4 {[%emt 0:01:23]} ({White should try} 38. Bd2 $16) 38... Bd8 {[%emt 0:01:04]} (38... cxb4 $11 {remains equal.} 39. Bxb4+ Kd7) 39. bxc5+ {[%emt 0:01:34]} bxc5 {[%emt 0:00:07]} 40. Kc2 {[%emt 0:00:00]} Bc7 $2 {[%emt 0:00:00][%mdl 8192] Loses the game.} (40... Bf6 $16 {was worth a try.}) 41. Kb3 $1 $18 {[%emt 0:00:47]} h5 {[%emt 0:03:21]} 42. Ka4 {[%emt 0:01:14]} Kc6 {[%emt 0:01:57]} 43. Ba5 {[%emt 0:01:22] Bxc7 would be deadly.} Bd6 {[%emt 0:11:47]} 44. Bd8 {[%emt 0:00:28] Prevents Be7.} Kd7 $2 {[%emt 0:00:37]} (44... Bf8 45. Bg5 Bd6) 45. Bf6 {[%emt 0:00:36]} Kc6 {[%emt 0:00:05] [#]} 46. Ka5 $1 {[%emt 0:00:09]} Bb8 {[%emt 0:09:57]} 47. Ka6 {[%emt 0:01:01]} Bc7 {[%emt 0:00:21]} 48. Be7 {[%emt 0:05:16]} Bb8 {[%emt 0:00:34]} 49. Bd8 {[%emt 0:04:31]} (49. f3 $142 {aiming for g4.} Bc7 50. h4) 49... Bd6 {[%emt 0:00:16]} 50. f3 {[%emt 0:00:32]} (50. Ka7 $142 Kd7 51. Bg5) 50... Bf8 {[%emt 0:01:59]} 51. Bf6 {[%emt 0:00:46]} Bd6 {[%emt 0:00:59]} 52. Ka7 {[%emt 0:01:47]} Bc7 $2 {[%emt 0:00:54]} (52... Kc7 53. Ka6 Kc6) 53. Be7 {[%emt 0:02:32]} Ba5 {[%emt 0:01:09] [#]} 54. Kb8 $1 {[%emt 0:01:48]} Bb6 {[%emt 0:01:54]} 55. Kc8 {[%emt 0:01:00]} Ba5 {[%emt 0:00:23]} 56. Bd8 {[%emt 0:01:38]} Bc3 {[%emt 0:00:55]} 57. Bc7 {[%emt 0:03:37]} Bd4 {[%emt 0:02:15]} 58. Ba5 {[%emt 0:00:34]} Bg1 {[%emt 0:01:00]} 59. h3 {[%emt 0:00:09]} Bf2 {[%emt 0:00:21]} 60. g4 {[%emt 0:01:09]} Bh4 {[%emt 0:00:16]} 61. Bc3 {[%emt 0:02:35]} Kd6 {[%emt 0:00:57]} 62. Kb7 $2 {[%emt 0:01:05]} (62. gxh5 gxh5 63. Kb7) 62... Bf2 $2 {[%emt 0:04:09]} (62... hxg4 63. fxg4 Bg5) 63. Kb6 {[%emt 0:01:36] White is clearly winning.} Be3 {[%emt 0:00:45]} 64. Kb5 {[%emt 0:00:38]} Bf4 {[%emt 0:02:04]} 65. Ba5 {[%emt 0:00:36]} Bg5 {[%emt 0:01:41]} 66. Bb6 {[%emt 0:00:30]} Be3 {[%emt 0:00:05]} 67. Bd8 {[%emt 0:00:13]} Bd4 {[%emt 0:00:53]} 68. Bg5 {[%emt 0:00:18]} Kd7 {[%emt 0:00:17]} 69. Bh6 {[%emt 0:03:34]} Ke7 {[%emt 0:00:14]} 70. Kc6 {[%emt 0:00:13]} Kf6 {[%emt 0:01:25]} 71. Kd7 {[%emt 0:02:44] Strongly threatening Ke8.} Kf7 {[%emt 0:00:43]} 72. Bg5 {[%emt 0:00:12]} Bf2 {[%emt 0:00:20]} 73. Kd6 {[%emt 0:00:19]} Bd4 {[%emt 0:00:31]} 74. Bh4 {[%emt 0:00:43]} Bg1 {[%emt 0:00:42]} 75. Bg3 {[%emt 0:01:28]} Kf6 {[%emt 0:00:24]} 76. Bxe5+ {[%emt 0:00:23]} Kg5 {[%emt 0:00:04]} 77. Bg3 {[%emt 0:00:32]} Kf6 {[%emt 0:00:54]} 78. Bh4+ {[%emt 0:00:25]} Kf7 {[%emt 0:00:06]} 79. Bd8 {[%emt 0:01:00] Weighted Error Value: White=0.24 (precise) /Black=0.29 (precise)} 1-0

[Event "Cracovia Festival-A 2023"]
[Site "Krakow"]
[Date "2024.01.02"]
[Round "6.5"]
[White "Podolskyi, Mykhailo"]
[Black "Janik, Igor"]
[Result "1-0"]
[ECO "A41"]
[WhiteElo "2177"]
[BlackElo "2514"]
[Annotator "TA"]
[PlyCount "95"]
[EventDate "2023.12.24"]
[EventType "swiss"]
[EventCountry "POL"]
[SourceTitle "playchess.com"]
[Source "ChessBase"]
[SourceQuality "1"]
[TimeControl "40/5400+30:1800+30"]

{[%evp 9,95,0,0,-9,-6,-7,0,-8,14,16,14,7,24,20,20,15,70,68,79,54,54,52,105,84,89,83,75,60,49,48,61,37,53,39,43,37,43,43,49,-28,-8,-23,-29,-12,-20,-33,2,0,40,41,67,77,94,59,301,327,378,407,397,382,378,376,367,318,481,476,456,448,1553,410,405,391,394,378,883,866,814,810,1623,554,939,956,1161,1014,1013,1006,829,772]} 1. d4 {[%emt 0:01:26]} d6 {[%emt 0:01:40]} 2. c4 {[%emt 0:01:56]} e5 {[%emt 0:00:04]} 3. Nc3 {[%emt 0:06:09]} exd4 {[%emt 0:00:07]} 4. Qxd4 {[%emt 0:00:04]} Nf6 {[%emt 0:00:04]} 5. Bg5 {[%emt 0:03:17]} Be7 {[%emt 0:02:19]} 6. Nf3 {[%emt 0:02:26]} h6 {[%emt 0:02:51]} 7. Bh4 {[%emt 0:01:07]} Nc6 {[%emt 0:01:03]} 8. Qd2 {[%emt 0:03:56] The position is equal.} Be6 {[%emt 0:03:27]} 9. e3 {[%emt 0:02:15]} O-O {[%emt 0:00:17]} 10. Be2 {[%emt 0:02:15]} Ne5 {[%emt 0:00:46]} 11. b3 {[%emt 0:09:45]} Ng6 {[%emt 0:02:30]} 12. Bg3 {[%emt 0:01:12]} Qc8 {[%emt 0:04:00]} (12... d5 $11) 13. Nd4 $14 {[%emt 0:06:28]} Bg4 {[%emt 0:00:18]} 14. Bd3 {[%emt 0:01:39]} Ne5 {[%emt 0:00:18]} 15. Bc2 {[%emt 0:01:20]} Rd8 {[%emt 0:00:29]} ({Better is} 15... Nc6 $14) 16. f3 {[%emt 0:04:22]} Bd7 {[%emt 0:00:41]} 17. O-O {[%emt 0:00:37]} a6 {[%emt 0:00:20]} 18. Rfd1 {[%emt 0:09:06] White is more active.} c5 {[%emt 0:02:09]} 19. Nde2 {[%emt 0:00:43]} Bc6 {[%emt 0:00:06][%cal Oc6f3]} 20. e4 {[%emt 0:09:52]} b5 {[%emt 0:00:50]} 21. f4 {[%emt 0:03:14]} Ng6 {[%emt 0:01:03]} 22. Nd5 {[%emt 0:01:01]} Nxd5 {[%emt 0:00:19]} 23. cxd5 {[%emt 0:02:21]} (23. exd5 Bd7 $11) 23... Bd7 {[%emt 0:00:05]} 24. b4 {[%emt 0:04:39]} (24. Rac1 $14) 24... Bf6 $11 {[%emt 0:06:32]} 25. Rac1 {[%emt 0:00:48][%cal Oe4e5]} ({Of course not} 25. e5 dxe5 26. Bxg6 exf4 27. Nxf4 (27. Bxf7+ Kxf7 28. Nxf4 Bg4 $17) 27... fxg6 28. Nxg6 Bf5 $17) 25... c4 $1 {[%emt 0:02:27][%cal Oa6a5]} 26. Nd4 {[%emt 0:03:07]} Re8 {[%emt 0:00:37][%cal Oa6a5]} 27. Re1 {[%emt 0:04:08]} Qc7 {[%emt 0:00:57]} 28. Nf3 {[%emt 0:01:03]} Bg4 {[%emt 0:03:15] [#]} 29. e5 $1 {[%emt 0:05:02]} dxe5 {[%emt 0:00:06]} (29... Be7 30. Kh1) 30. d6 $36 {[%emt 0:00:21][%mdl 2048] Keeping Black busy.} Qd7 {[%emt 0:02:54] ...exf4 would be deadly.} 31. fxe5 {[%emt 0:01:14][%cal Bf4e5,Be5f6,Bf6e7][%mdl 32]} Bxf3 $2 {[%emt 0:00:25] This costs Black the game.} (31... Bd8 $1 $14) 32. exf6 $18 {[%emt 0:00:10]} Bb7 {[%emt 0:00:58] Black is weak on the dark squares} 33. Bxg6 {[%emt 0:04:38]} ({Don't play} 33. fxg7 h5 34. Rcd1 c3 $18) 33... fxg6 {[%emt 0:00:01]} (33... Rxe1+ $2 34. Rxe1 c3 35. Qxc3 $18) 34. Re7 {[%emt 0:00:11]} Rxe7 {[%emt 0:00:01]} 35. fxe7 {[%emt 0:00:01]} Re8 {[%emt 0:00:06]} 36. Re1 {[%emt 0:02:11][%cal Bc1e1,Be1e2,Be2f2,Bf2f5][%mdl 32]} Kh7 {[%emt 0:00:10]} (36... Bc6 {was called for.} 37. a3 Qf5) 37. Qf2 {[%emt 0:01:37]} Bc6 {[%emt 0:01:45]} 38. Be5 {[%emt 0:01:46] [#] Hoping for Qf8.} Qe6 {[%emt 0:00:16]} (38... Qf5 $142 39. Qb6 Ba8) 39. h3 {[%emt 0:01:34]} (39. Qf8 $142 {[%csl Ge5][%cal Rf8g7]} Qg8 40. Rf1) 39... Qd5 {[%emt 0:00:31]} 40. Re2 {[%emt 0:00:00] Qf8 is the strong threat.} Kg8 {[%emt 0:00:00] Repels Qf8+} 41. Kh2 {[%emt 0:02:50]} h5 $2 {[%emt 0:02:13]} (41... Bd7 42. Qa7 Bc8) 42. Qf4 {[%emt 0:00:51] And now Rf2 would win. White is clearly winning.} Qe6 {[%emt 0:00:34]} 43. Rf2 {[%emt 0:02:13]} Kh7 {[%emt 0:00:02]} 44. h4 {[%emt 0:03:06]} (44. Bxg7 $142 {White wants to mate with Qh6+.} Kxg7 45. Qf8+ Kh7 46. Rf7+ Qxf7 47. Qxf7+ Kh6 48. Qe6) 44... Rg8 {[%emt 0:00:36]} 45. Bc3 {[%emt 0:00:42]} g5 {[%emt 0:00:53]} 46. Qf5+ {[%emt 0:03:22]} Qxf5 {[%emt 0:00:02]} 47. Rxf5 {[%emt 0:00:02]} gxh4 {[%emt 0:00:07]} 48. Rc5 {[%emt 0:00:39] Artfully played by Podolskyi.   Weighted Error Value: White=0.35/Black=0.30} 1-0

[Event "Cracovia Festival-A 2023"]
[Site "Krakow"]
[Date "2024.01.02"]
[Round "6.6"]
[White "Pajeken, Jakob Leon"]
[Black "Antolak, Julia"]
[Result "1-0"]
[ECO "B90"]
[WhiteElo "2428"]
[BlackElo "2287"]
[Annotator "RC"]
[PlyCount "51"]
[EventDate "2023.12.24"]
[EventType "swiss"]
[EventCountry "POL"]
[SourceTitle "playchess.com"]
[Source "ChessBase"]
[SourceQuality "1"]
[TimeControl "40/5400+30:1800+30"]

1. e4 {[%emt 0:03:32]} c5 {[%emt 0:00:19]} 2. Nf3 {[%emt 0:01:56]} d6 {[%emt 0:00:05]} 3. d4 {[%emt 0:01:25]} cxd4 {[%emt 0:00:07]} 4. Nxd4 {[%emt 0:00:02]} Nf6 {[%emt 0:00:09]} 5. Nc3 {[%emt 0:00:02]} a6 {[%emt 0:00:05]} 6. Be3 {[%emt 0:01:09]} Ng4 {[%emt 0:00:31]} 7. Bg5 {[%emt 0:00:09]} h6 {[%emt 0:00:07]} 8. Bc1 {[%emt 0:00:03]} Nc6 {[%emt 0:07:12]} 9. Be2 {[%emt 0:02:17]} Nf6 {[%emt 0:02:14]} 10. Be3 {[%emt 0:00:39]} e6 {[%emt 0:00:59]} 11. Qd2 {[%emt 0:02:13]} Qc7 {[%emt 0:05:39]} 12. O-O-O {[%emt 0:03:36]} Na5 {[%emt 0:04:45]} 13. f4 {[%emt 0:06:31]} b5 {[%emt 0:04:28]} 14. e5 {[%emt 0:20:56]} b4 {[%emt 0:08:44]} 15. Na4 {[%emt 0:11:38]} Nd5 {[%emt 0:05:14]} 16. exd6 {[%emt 0:03:49]} Bxd6 {[%emt 0:00:28]} 17. Nf5 {[%emt 0:02:22]} Bf8 {[%emt 0:15:22]} 18. Bf3 {[%emt 0:10:37]} b3 {[%emt 0:04:40]} 19. Bxd5 {[%emt 0:11:56]} exd5 {[%emt 0:01:54]} 20. Nb6 {[%emt 0:00:49]} Bb4 {[%emt 0:08:16]} 21. Nxg7+ {[%emt 0:00:16]} Kf8 {[%emt 0:02:02]} 22. Qxb4+ {[%emt 0:00:08]} Kxg7 {[%emt 0:00:04]} 23. axb3 {[%emt 0:00:41]} Bf5 {[%emt 0:00:59]} 24. Rd2 {[%emt 0:00:52]} Rae8 {[%emt 0:04:04]} 25. Bd4+ {[%emt 0:00:17]} Kh7 {[%emt 0:00:03]} 26. Bxh8 {[%emt 0:00:41]} 1-0

[Event "Cracovia Festival-A 2023"]
[Site "Krakow"]
[Date "2024.01.02"]
[Round "6.7"]
[White "Balint, Peter"]
[Black "Pacan-Milej, Kosma"]
[Result "0-1"]
[ECO "B10"]
[WhiteElo "2187"]
[BlackElo "2425"]
[Annotator "RC"]
[PlyCount "170"]
[EventDate "2023.12.24"]
[EventType "swiss"]
[EventCountry "POL"]
[SourceTitle "playchess.com"]
[Source "ChessBase"]
[SourceQuality "1"]
[TimeControl "40/5400+30:1800+30"]

1. e4 {[%emt 0:00:02]} c6 {[%emt 0:03:05]} 2. Nf3 {[%emt 0:00:03]} d5 {[%emt 0:00:23]} 3. exd5 {[%emt 0:00:22]} cxd5 {[%emt 0:00:04]} 4. d4 {[%emt 0:00:10]} Nc6 {[%emt 0:00:28]} 5. c3 {[%emt 0:00:07]} Nf6 {[%emt 0:00:55]} 6. Ne5 {[%emt 0:00:46]} e6 {[%emt 0:03:50]} 7. Bb5 {[%emt 0:06:03]} Bd7 {[%emt 0:00:26]} 8. Nxd7 {[%emt 0:00:18]} Qxd7 {[%emt 0:00:04]} 9. O-O {[%emt 0:00:33]} Bd6 {[%emt 0:00:04]} 10. Nd2 {[%emt 0:01:27]} Qc7 {[%emt 0:01:09]} 11. Nf3 {[%emt 0:03:08]} O-O {[%emt 0:00:16]} 12. Bd3 {[%emt 0:06:54]} Rab8 {[%emt 0:02:48]} 13. a4 {[%emt 0:05:50]} a6 {[%emt 0:01:08]} 14. Qe2 {[%emt 0:08:53]} Rfe8 {[%emt 0:03:05]} 15. Bg5 {[%emt 0:12:23]} Nd7 {[%emt 0:00:33]} 16. Rad1 {[%emt 0:02:15]} h6 {[%emt 0:06:01]} 17. Bc1 {[%emt 0:03:00]} Bf4 {[%emt 0:07:53]} 18. Bxf4 {[%emt 0:05:11]} Qxf4 {[%emt 0:00:06]} 19. g3 {[%emt 0:00:52]} Qf6 {[%emt 0:00:58]} 20. Kg2 {[%emt 0:02:12]} e5 {[%emt 0:06:12]} 21. dxe5 {[%emt 0:00:58]} Ncxe5 {[%emt 0:01:42]} 22. Nxe5 {[%emt 0:03:00]} Rxe5 {[%emt 0:03:33]} 23. Qg4 {[%emt 0:05:08]} Nc5 {[%emt 0:01:14]} 24. Qd4 {[%emt 0:05:36]} Nxd3 {[%emt 0:10:50]} 25. Qxd3 {[%emt 0:01:27]} Rbe8 {[%emt 0:00:40]} 26. Rd2 {[%emt 0:02:57]} Qc6 {[%emt 0:00:28]} 27. Qd4 {[%emt 0:00:56]} Rf5 {[%emt 0:03:55]} 28. b3 {[%emt 0:04:39]} Re4 {[%emt 0:09:56]} 29. Qd3 {[%emt 0:01:12]} Qe6 {[%emt 0:00:20]} 30. Rfd1 {[%emt 0:04:41]} h5 {[%emt 0:09:12]} 31. h4 {[%emt 0:01:44]} Qg6 {[%emt 0:00:49]} 32. c4 {[%emt 0:11:40]} dxc4 {[%emt 0:02:36]} 33. Qxe4 {[%emt 0:00:53]} Rxf2+ {[%emt 0:00:05]} 34. Kxf2 {[%emt 0:00:03]} Qxe4 {[%emt 0:00:03]} 35. bxc4 {[%emt 0:00:05]} Qxc4 {[%emt 0:00:17]} 36. Rd4 {[%emt 0:00:18]} Qc5 {[%emt 0:00:44]} 37. Kg2 {[%emt 0:00:19]} b5 {[%emt 0:01:01]} 38. axb5 {[%emt 0:00:52]} axb5 {[%emt 0:00:02]} 39. Rd8+ {[%emt 0:01:24]} Kh7 {[%emt 0:00:05]} 40. R1d2 {[%emt 0:00:00]} b4 {[%emt 0:00:00]} 41. Rf2 {[%emt 0:03:32]} Qc6+ {[%emt 0:04:06]} 42. Kh2 {[%emt 0:00:51]} f6 {[%emt 0:14:59]} 43. Rdd2 {[%emt 0:02:10]} b3 {[%emt 0:06:04]} 44. Rb2 {[%emt 0:00:47]} Qd5 {[%emt 0:07:44]} 45. Rbe2 {[%emt 0:12:43]} f5 {[%emt 0:01:56]} 46. Rd2 {[%emt 0:01:46]} Qc5 {[%emt 0:02:11]} 47. Rde2 {[%emt 0:00:45]} Qc4 {[%emt 0:01:35]} 48. Rd2 {[%emt 0:01:01]} Qc3 {[%emt 0:02:29]} 49. Rde2 {[%emt 0:00:51]} Qc4 {[%emt 0:04:46]} 50. Rd2 {[%emt 0:00:17]} Qb4 {[%emt 0:00:51]} 51. Rb2 {[%emt 0:00:51]} Qc3 {[%emt 0:00:57]} 52. Rbe2 {[%emt 0:00:05]} g6 {[%emt 0:00:28]} 53. Re7+ {[%emt 0:00:34]} Kh6 {[%emt 0:00:11]} 54. Ree2 {[%emt 0:00:04]} Qd4 {[%emt 0:01:23]} 55. Rd2 {[%emt 0:01:04]} Qf6 {[%emt 0:00:27]} 56. Rde2 {[%emt 0:00:41]} Qd4 {[%emt 0:04:18]} 57. Rd2 {[%emt 0:00:04]} Qc4 {[%emt 0:00:05]} 58. Rb2 {[%emt 0:01:18]} Qc3 {[%emt 0:02:20]} 59. Rbe2 {[%emt 0:00:38]} Qf6 {[%emt 0:01:59]} 60. Rd2 {[%emt 0:00:21]} g5 {[%emt 0:01:26]} 61. hxg5+ {[%emt 0:00:22]} Kxg5 {[%emt 0:00:08]} 62. Rde2 {[%emt 0:05:43]} Qc3 {[%emt 0:00:29]} 63. Kg2 {[%emt 0:01:43]} h4 {[%emt 0:01:13]} 64. gxh4+ {[%emt 0:01:10]} Kg4 {[%emt 0:00:12]} 65. Kg1 {[%emt 0:02:35]} Qc1+ {[%emt 0:00:27]} 66. Kh2 {[%emt 0:00:44]} Qc7+ {[%emt 0:01:17]} 67. Kg1 {[%emt 0:00:26]} f4 {[%emt 0:02:02]} 68. Rg2+ {[%emt 0:00:35]} Kf5 {[%emt 0:00:03]} 69. Rgf2 {[%emt 0:00:55]} Qc1+ {[%emt 0:00:20]} 70. Kh2 {[%emt 0:00:08]} Qc3 {[%emt 0:00:34]} 71. h5 {[%emt 0:01:18]} Qg3+ {[%emt 0:00:19]} 72. Kh1 {[%emt 0:00:04]} Qh3+ {[%emt 0:00:19]} 73. Kg1 {[%emt 0:00:04]} Qxh5 {[%emt 0:00:12]} 74. Rd2 {[%emt 0:00:57]} Qg4+ {[%emt 0:00:15]} 75. Kf1 {[%emt 0:00:37]} Qh3+ {[%emt 0:00:10]} 76. Kg1 {[%emt 0:00:08]} Qc3 {[%emt 0:00:57]} 77. Kh2 {[%emt 0:00:40]} f3 {[%emt 0:00:53]} 78. Kg3 {[%emt 0:01:24]} Ke4 {[%emt 0:00:04]} 79. Kh2 {[%emt 0:00:17]} Ke3 {[%emt 0:01:03]} 80. Rb2 {[%emt 0:01:01]} Kf4 {[%emt 0:00:22]} 81. Kg1 {[%emt 0:00:32]} Qe3 {[%emt 0:01:50]} 82. Rbd2 {[%emt 0:00:45]} Kg3 {[%emt 0:00:26]} 83. Kf1 {[%emt 0:00:33]} b2 {[%emt 0:00:04]} 84. Rg2+ {[%emt 0:00:16]} fxg2+ {[%emt 0:00:08]} 85. Rxg2+ {[%emt 0:00:03]} Kf4 {[%emt 0:00:10]} 0-1

[Event "Cracovia Festival-A 2023"]
[Site "Krakow"]
[Date "2024.01.02"]
[Round "6.8"]
[White "Schwabeneder, Florian"]
[Black "Aakash Sharadchandra, Dalvi"]
[Result "0-1"]
[ECO "A06"]
[WhiteElo "2402"]
[BlackElo "2130"]
[Annotator "RC"]
[PlyCount "74"]
[EventDate "2023.12.24"]
[EventType "swiss"]
[EventCountry "POL"]
[SourceTitle "playchess.com"]
[Source "ChessBase"]
[SourceQuality "1"]
[TimeControl "40/5400+30:1800+30"]

1. Nf3 {[%emt 0:00:04]} d5 {[%emt 0:05:35]} 2. g3 {[%emt 0:00:32]} c6 {[%emt 0:00:45]} 3. Bg2 {[%emt 0:00:12]} Bf5 {[%emt 0:00:28]} 4. O-O {[%emt 0:00:41]} e6 {[%emt 0:00:07]} 5. d3 {[%emt 0:01:37]} h6 {[%emt 0:01:04]} 6. c4 {[%emt 0:03:37]} dxc4 {[%emt 0:00:32]} 7. dxc4 {[%emt 0:00:10]} Nd7 {[%emt 0:00:10]} 8. Nc3 {[%emt 0:01:49]} Ngf6 {[%emt 0:00:28]} 9. Be3 {[%emt 0:14:52]} Be7 {[%emt 0:03:28]} 10. h3 {[%emt 0:01:08]} Qc7 {[%emt 0:05:17]} 11. Qc1 {[%emt 0:06:35]} e5 {[%emt 0:02:01]} 12. b3 {[%emt 0:01:41]} O-O {[%emt 0:00:56]} 13. Rd1 {[%emt 0:05:04]} Rfd8 {[%emt 0:11:11]} 14. Qb2 {[%emt 0:03:40]} Bc5 {[%emt 0:03:26]} 15. Bxc5 {[%emt 0:01:52]} Nxc5 {[%emt 0:00:04]} 16. b4 {[%emt 0:00:27]} Ne6 {[%emt 0:01:51]} 17. e3 {[%emt 0:05:45]} a5 {[%emt 0:07:59]} 18. a3 {[%emt 0:00:53]} e4 {[%emt 0:07:59]} 19. Nd4 {[%emt 0:08:34]} Nxd4 {[%emt 0:00:50]} 20. exd4 {[%emt 0:00:11]} axb4 {[%emt 0:00:17]} 21. axb4 {[%emt 0:01:48]} Rxa1 {[%emt 0:00:20]} 22. Qxa1 {[%emt 0:00:39]} e3 {[%emt 0:09:20]} 23. Qb2 {[%emt 0:00:45]} exf2+ {[%emt 0:01:32]} 24. Qxf2 {[%emt 0:01:01]} Be6 {[%emt 0:02:06]} 25. d5 {[%emt 0:02:13]} cxd5 {[%emt 0:00:09]} 26. Nxd5 {[%emt 0:00:09]} Bxd5 {[%emt 0:00:36]} 27. cxd5 {[%emt 0:07:02]} Ne8 {[%emt 0:03:22]} 28. Re1 {[%emt 0:00:32]} Nd6 {[%emt 0:00:57]} 29. Kh2 {[%emt 0:00:54]} Qc3 {[%emt 0:06:42]} 30. Qb6 {[%emt 0:02:47]} Ra8 {[%emt 0:00:57]} 31. Re3 {[%emt 0:00:49]} Qd2 {[%emt 0:01:25]} 32. Re7 {[%emt 0:04:06]} Ra2 {[%emt 0:01:55]} 33. Qg1 {[%emt 0:00:08]} Qxb4 {[%emt 0:01:26]} 34. Rd7 {[%emt 0:00:22]} g6 {[%emt 0:04:19]} 35. Qe3 {[%emt 0:02:18]} Qb2 {[%emt 0:00:28]} 36. Qf3 {[%emt 0:00:12]} Qe5 {[%emt 0:00:35]} 37. Rd8+ {[%emt 0:03:45]} Kg7 {[%emt 0:03:04]} 0-1

[Event "Cracovia Festival-A 2023"]
[Site "Krakow"]
[Date "2024.01.02"]
[Round "6.9"]
[White "Kulkarni Bhakti"]
[Black "Lewicki, Miroslaw"]
[Result "1/2-1/2"]
[ECO "D35"]
[WhiteElo "2364"]
[BlackElo "2321"]
[Annotator "RC"]
[PlyCount "85"]
[EventDate "2023.12.24"]
[EventType "swiss"]
[EventCountry "POL"]
[SourceTitle "playchess.com"]
[Source "ChessBase"]
[SourceQuality "1"]
[TimeControl "40/5400+30:1800+30"]

1. d4 {[%emt 0:04:03]} d5 {[%emt 0:00:03]} 2. c4 {[%emt 0:00:31]} e6 {[%emt 0:00:04]} 3. Nc3 {[%emt 0:00:20]} Nf6 {[%emt 0:00:06]} 4. cxd5 {[%emt 0:00:56]} exd5 {[%emt 0:00:07]} 5. Bg5 {[%emt 0:00:15]} Be7 {[%emt 0:00:48]} 6. e3 {[%emt 0:00:16]} Nbd7 {[%emt 0:00:40]} 7. Qc2 {[%emt 0:00:30]} h6 {[%emt 0:00:30]} 8. Bh4 {[%emt 0:01:42]} c6 {[%emt 0:00:12]} 9. Bd3 {[%emt 0:00:34]} O-O {[%emt 0:00:16]} 10. Nge2 {[%emt 0:00:40]} Re8 {[%emt 0:00:12]} 11. O-O {[%emt 0:00:50]} Nf8 {[%emt 0:01:18]} 12. f3 {[%emt 0:02:39]} c5 {[%emt 0:08:34]} 13. Bxf6 {[%emt 0:16:18]} Bxf6 {[%emt 0:06:14]} 14. dxc5 {[%emt 0:02:43]} Rxe3 {[%emt 0:05:09]} 15. Rad1 {[%emt 0:00:48]} Be6 {[%emt 0:01:32]} 16. Be4 {[%emt 0:06:42]} Qa5 {[%emt 0:06:29]} 17. Nxd5 {[%emt 0:02:40]} Bxd5 {[%emt 0:00:05]} 18. Bxd5 {[%emt 0:15:17]} Rc8 {[%emt 0:00:10]} 19. Ng3 {[%emt 0:20:16]} Rxc5 {[%emt 0:11:22]} 20. Qf2 {[%emt 0:00:24]} Re7 {[%emt 0:01:30]} 21. Bb3 {[%emt 0:01:36]} Bh4 {[%emt 0:03:15]} 22. f4 {[%emt 0:07:16]} Rc8 {[%emt 0:12:53]} 23. Rd5 {[%emt 0:02:35]} Qa6 {[%emt 0:00:56]} 24. Re5 {[%emt 0:04:20]} Rec7 {[%emt 0:02:19]} 25. Qe3 {[%emt 0:00:38]} Bf6 {[%emt 0:01:00]} 26. Rf5 {[%emt 0:03:42]} Ne6 {[%emt 0:04:32]} 27. Rd1 {[%emt 0:03:40]} Nc5 {[%emt 0:03:11]} 28. Nh5 {[%emt 0:01:30]} Bxb2 {[%emt 0:00:26]} 29. Bxf7+ {[%emt 0:00:17]} Kh8 {[%emt 0:03:08]} 30. Ng3 {[%emt 0:00:49]} Bf6 {[%emt 0:06:10]} 31. Bg6 {[%emt 0:00:37]} Ne6 {[%emt 0:01:12]} 32. Rxf6 {[%emt 0:00:14]} gxf6 {[%emt 0:00:04]} 33. f5 {[%emt 0:00:08]} Ng5 {[%emt 0:00:44]} 34. h4 {[%emt 0:00:16]} Nf7 {[%emt 0:06:42]} 35. Bxf7 {[%emt 0:00:16]} Rxf7 {[%emt 0:00:08]} 36. Qxh6+ {[%emt 0:00:05]} Rh7 {[%emt 0:00:06]} 37. Qf4 {[%emt 0:00:09]} Qxa2 {[%emt 0:01:44]} 38. Qd4 {[%emt 0:01:39]} Qf7 {[%emt 0:01:14]} 39. Ne4 {[%emt 0:00:05]} Rxh4 {[%emt 0:00:35]} 40. Nd6 {[%emt 0:00:00]} Rxd4 {[%emt 0:00:00]} 41. Nxf7+ {[%emt 0:00:40]} Kg7 {[%emt 0:05:58]} 42. Rxd4 {[%emt 0:00:05]} Kxf7 {[%emt 0:00:04]} 43. Rd7+ {[%emt 0:00:09]} 1/2-1/2